bitfinex/quotes_ETHUSD_20250414
["timestamp","ask_amount","ask_price","bid_price","bid_amount"]
[1744673377265,7.8115023,1624.2,1623.9,6.94861]
[1744673377581,6.15697,1624.2,1623.9,6.94861]
[1744673377788,12.31406,1624.2,1623.9,6.94861]
[1744673378396,6.15697,1624.2,1623.9,6.94861]
[1744673379286,6.15697,1624.2,1623.9,6.94849]
[1744673380087,6.15697,1624.2,1623.9,0.7906]
[1744673380755,6.15726,1624.1,1623.9,0.7906]
[1744673381250,6.15697,1624.2,1623.9,6.94859]
[1744673381455,6.15697,1624.2,1623.9,7.01016351]
[1744673381651,6.15697,1624.2,1623.9,13.16815351]
[1744673381886,6.15697,1624.2,1623.9,13.10658]
[1744673382091,6.15697,1624.2,1623.9,7.90628438]
[1744673382272,12.31397,1624.2,1623.9,7.90628438]
[1744673382660,12.31414,1624.2,1623.9,7.90628438]
[1744673382862,12.31414,1624.2,1623.9,7.96785791]
[1744673383062,12.31414,1624.2,1623.9,7.90628438]
[1744673383292,6.15697,1624.2,1623.9,14.12576791]
[1744673383493,6.15697,1624.2,1623.9,14.06419438]
[1744673384183,6.15697,1624.2,1623.9,7.90620438]
[1744673385092,6.15697,1624.2,1623.9,14.06412438]
[1744673385279,6.1569,1624.2,1623.9,14.06412438]
[1744673385470,12.31394,1624.2,1623.9,6.94851]
[1744673385793,6.1569,1624.2,1623.9,6.94851]
[1744673385995,6.1569,1624.2,1623.9,13.10643]
[1744673386292,6.1569,1624.2,1623.7,0.03]
[1744673386490,5.83896401,1623.8,1623.7,4.03]
[1744673386666,3.0,1623.9,1623.7,0.03]
[1744673386871,6.15839,1623.8,1623.7,0.03]
[1744673387259,9.1582,1623.9,1623.7,0.03]
[1744673387460,6.15815,1623.9,1623.7,0.8038]
[1744673387661,6.15839,1623.8,1623.7,0.03]
[1744673395208,12.932165,1623.9,1623.7,0.03]
[1744673395209,12.932255,1623.9,1623.7,0.03]
[1744673395415,6.15839,1623.8,1623.7,0.03]
[1744673403426,6.15815,1623.9,1623.7,0.03]
[1744673403624,8.59465401,1624.1,1623.8,0.8318]
[1744673403625,5.14,1624.1,1623.8,0.8318]
[1744673403918,6.15652,1624.3,1624.0,6.98926]
[1744673404120,6.15652,1624.3,1624.1,0.8318]
[1744673404317,6.15687,1624.2,1624.1,0.8318]
[1744673404909,6.15743,1624.1,1623.9,6.1828]
[1744673405892,6.15742,1624.1,1623.9,6.1828]
[1744673406290,6.15739,1624.1,1623.9,6.24437272]
[1744673406544,2.83896401,1624.7,1624.2,0.7699]
[1744673406689,10.65305384,1625.4,1624.3,9.07741817]
[1744673406690,6.15402,1625.0,1624.3,9.07741817]
[1744673406893,6.15428,1624.9,1624.5,6.92536]
[1744673407191,8.99335401,1624.9,1624.5,0.7699]
[1744673407419,6.15536,1624.6,1624.5,0.7699]
[1744673408299,1.231052,1624.6,1624.3,0.8044]
[1744673408504,6.15611,1624.4,1624.3,6.2104]
[1744673408706,6.15611,1624.4,1624.3,9.406]
[1744673409028,6.15611,1624.4,1624.3,4.0]
[1744673409196,6.15611,1624.4,1624.1,6.1654]
[1744673409197,6.15684,1624.3,1624.1,6.1654]
[1744673410123,6.15687,1624.2,1624.1,6.1654]
[1744673410305,12.31368,1624.3,1624.1,6.1654]
[1744673410723,6.1567,1624.3,1624.1,6.1654]
[1744673411019,6.15626,1624.4,1624.1,6.78194]
[1744673411435,6.15574,1624.5,1624.1,6.1654]
[1744673412323,12.31353,1624.3,1624.1,6.1654]
[1744673413246,6.15687,1624.2,1624.1,6.1654]
[1744673413428,6.15687,1624.2,1624.1,5.406]
[1744673414544,6.15622,1624.4,1624.1,5.406]
[1744673414731,6.1565,1624.3,1624.2,0.821]
[1744673414948,12.31257,1624.4,1624.2,0.821]
[1744673415844,6.15649,1624.3,1624.2,0.821]
[1744673416348,6.15622,1624.4,1624.2,0.821]
[1744673417169,3.46181674,1624.6,1624.2,6.97774]
[1744673417170,9.15546,1624.6,1624.2,6.97774]
[1744673417439,6.15469,1624.8,1624.5,6.9289]
[1744673417633,12.30873,1624.9,1624.6,11.55817]
[1744673417804,6.15431,1624.9,1624.6,11.55817]
[1744673418140,6.15424,1624.9,1624.6,11.55827]
[1744673418336,6.15464,1624.8,1624.6,5.403]
[1744673418634,6.15498,1624.7,1624.6,5.403]
[1744673419235,12.30957,1624.8,1624.6,5.403]
[1744673419433,6.15464,1624.8,1624.6,5.403]
[1744673419638,12.30861,1624.9,1624.6,5.403]
[1744673420004,6.15462,1624.8,1624.6,5.403]
[1744673421728,12.30939,1624.8,1624.6,5.403]
[1744673422051,6.15498,1624.7,1624.6,5.403]
[1744673422349,12.30874,1624.9,1624.6,5.403]
[1744673422549,6.15433,1624.9,1624.6,11.55822]
[1744673422751,6.15433,1624.9,1624.7,0.7734]
[1744673426161,12.30877,1624.9,1624.7,0.7734]
[1744673426939,12.30877,1624.9,1624.6,5.403]
[1744673426940,6.15498,1624.7,1624.6,5.403]
[1744673432049,7.385247,1624.9,1624.7,0.7984]
[1744673432486,6.15437,1624.9,1624.7,0.7984]
[1744673432673,12.30874,1624.9,1624.7,0.7984]
[1744673433282,6.1546,1624.8,1624.7,0.7984]
[1744673433581,6.15498,1624.7,1624.6,5.403]
[1744673438107,5.14,1625.3,1624.6,6.1994]
[1744673438404,6.15397,1625.0,1624.8,0.8206]
[1744673438556,12.30796,1625.0,1624.8,0.8206]
[1744673438956,6.15396,1625.0,1624.8,0.8206]
[1744673439261,6.15355,1625.1,1624.8,6.97484]
[1744673439459,12.82043,1625.2,1624.9,6.15419]
[1744673439764,6.15317,1625.2,1624.9,6.15412]
[1744673439950,12.30639,1625.2,1624.9,6.15412]
[1744673441289,0.30084978,1625.6,1624.9,6.15412]
[1744673441290,6.15083,1625.8,1625.1,0.7679]
[1744673441468,6.15161,1625.6,1625.3,6.15253]
[1744673441668,6.15161,1625.6,1625.4,0.7679]
[1744673442579,12.30338,1625.6,1625.4,0.7679]
[1744673442782,6.15195,1625.5,1625.4,0.7679]
[1744673443888,6.15271,1625.3,1625.1,0.7596]
[1744673444090,1.230533,1625.3,1624.9,0.7596]
[1744673444385,6.15372,1625.1,1625.0,9.402]
[1744673444590,12.30654,1625.2,1624.7,0.8269]
[1744673444591,6.15414,1625.0,1624.8,5.401]
[1744673444774,12.30828,1625.0,1624.8,5.401]
[1744673445180,6.15422,1624.9,1624.8,5.401]
[1744673446199,6.15367,1625.1,1624.8,11.55549]
[1744673446378,3.0,1625.2,1624.8,6.64539338]
[1744673446585,6.15376,1625.1,1624.8,5.401]
[1744673446779,12.3076,1625.1,1624.8,5.401]
[1744673447095,6.15376,1625.1,1624.8,11.55558]
[1744673447663,6.15365,1625.1,1624.8,5.401]
[1744673448000,9.15338,1625.2,1624.8,11.55548]
[1744673448159,6.15346,1625.1,1624.8,18.948168]
[1744673448363,6.15346,1625.1,1624.8,12.793688]
[1744673448597,9.15338,1625.2,1624.8,12.793688]
[1744673448767,6.15338,1625.2,1624.9,6.15401]
[1744673448972,17.44562,1625.3,1625.0,0.8253]
[1744673449164,12.30562,1625.3,1625.0,0.8253]
[1744673449492,6.15238,1625.4,1625.1,6.21485356]
[1744673449798,12.30415,1625.5,1625.2,5.398]
[1744673450893,6.15271,1625.3,1625.2,5.398]
[1744673451294,12.30502,1625.4,1625.2,5.398]
[1744673451483,6.15251,1625.4,1625.2,5.398]
[1744673451691,12.30502,1625.4,1625.2,5.398]
[1744673452787,12.30506,1625.4,1625.2,5.398]
[1744673453202,12.30501,1625.4,1625.2,5.398]
[1744673453498,6.1525,1625.4,1625.2,5.398]
[1744673453672,12.30499,1625.4,1625.2,5.398]
[1744673454297,6.15249,1625.4,1625.2,5.398]
[1744673454490,12.30498,1625.4,1625.2,5.398]
[1744673454700,12.30508,1625.4,1625.2,5.398]
[1744673454997,6.15271,1625.3,1625.2,5.398]
[1744673458472,6.15245,1625.4,1625.2,5.398]
[1744673458705,6.15271,1625.3,1625.2,5.398]
[1744673464010,12.30788,1625.0,1624.9,5.398]
[1744673464174,12.30788,1625.0,1624.8,6.2184]
[1744673465402,6.15422,1624.9,1624.8,6.2184]
[1744673466343,6.15386,1625.0,1624.8,6.2184]
[1744673466645,6.15347,1625.1,1624.8,7.51727601]
[1744673466797,12.30731,1625.1,1624.8,13.67176601]
[1744673467130,12.30731,1625.1,1624.8,13.610227]
[1744673467332,6.15385,1625.0,1624.8,7.455737]
[1744673467924,12.30783,1625.0,1624.8,7.455737]
[1744673468130,6.15385,1625.0,1624.8,6.2184]
[1744673468431,12.30787,1625.0,1624.8,6.2184]
[1744673468630,12.30785,1625.0,1624.8,6.2184]
[1744673468828,6.15385,1625.0,1624.8,6.2184]
[1744673468999,12.30721,1625.1,1624.8,12.37299]
[1744673469749,6.15358,1625.1,1624.8,12.37299]
[1744673469934,3.0,1625.2,1624.9,6.154]
[1744673470100,3.0,1625.2,1625.0,6.95137]
[1744673470430,9.15309,1625.2,1625.0,0.7976]
[1744673470925,15.30639,1625.2,1625.0,0.7976]
[1744673471456,15.30639,1625.2,1624.8,16.24428201]
[1744673471457,6.15394,1625.0,1624.8,6.1754]
[1744673471749,12.30799,1625.0,1624.8,8.023911]
[1744673471952,12.30799,1625.0,1624.8,6.1754]
[1744673472728,6.15394,1625.0,1624.8,6.1754]
[1744673473233,12.3073,1625.1,1624.8,12.32997]
[1744673473546,6.15384,1625.0,1624.8,12.32997]
[1744673473717,6.15384,1625.0,1624.8,6.1754]
[1744673474239,6.1535,1625.1,1624.8,12.97888167]
[1744673474409,6.1532,1625.2,1624.9,6.15406]
[1744673474612,6.15309,1625.2,1624.9,6.21566448]
[1744673474836,6.15309,1625.2,1624.9,12.36977448]
[1744673475036,6.15309,1625.2,1624.9,8.35742202]
[1744673475234,6.15309,1625.2,1624.9,8.35741202]
[1744673475433,12.3063,1625.2,1624.9,8.35741202]
[1744673475633,3.0,1625.4,1624.9,2.20331202]
[1744673475634,6.15384,1625.0,1624.9,2.20331202]
[1744673475934,6.15384,1625.0,1624.8,6.82438167]
[1744673476741,6.15358,1625.1,1624.8,13.0404908]
[1744673476948,6.15353,1625.1,1624.8,19.13336167]
[1744673478108,6.15353,1625.1,1624.8,19.13337167]
[1744673478309,6.15353,1625.1,1624.9,1.91333717]
[1744673478618,6.15353,1625.1,1624.8,12.97887167]
[1744673480341,12.30736,1625.1,1624.8,12.97887167]
[1744673482541,12.30723,1625.1,1624.8,12.97887167]
[1744673483344,12.30727,1625.1,1624.8,12.97887167]
[1744673484345,6.15398,1625.0,1624.8,5.398]
[1744673484517,6.15422,1624.9,1624.8,5.398]
[1744673486408,6.15422,1624.9,1624.6,0.7615]
[1744673486409,6.15486,1624.8,1624.6,0.7615]
[1744673486614,6.15511,1624.7,1624.5,5.396]
[1744673486845,12.31032,1624.7,1624.5,5.396]
[1744673487257,12.31024,1624.7,1624.5,5.396]
[1744673487742,6.15511,1624.7,1624.5,5.396]
[1744673488114,6.1546,1624.8,1624.5,5.45755094]
[1744673488314,6.1546,1624.8,1624.5,17.65218503]
[1744673488539,12.30938,1624.8,1624.5,17.59063409]
[1744673488741,0.45805188,1625.3,1624.7,2.83896401]
[1744673488942,11.29198,1625.5,1625.0,0.8301]
[1744673489143,6.269198,1625.5,1625.0,6.2261]
[1744673489343,12.421518,1625.5,1625.2,6.15296]
[1744673489662,7.281168,1625.5,1625.0,6.2261]
[1744673489827,12.30265,1625.7,1625.3,6.91329]
[1744673490020,6.15048,1625.9,1625.5,6.15168]
[1744673490021,6.15058,1625.9,1625.5,6.15168]
[1744673490326,6.15123,1625.7,1625.4,11.54831]
[1744673490536,6.15163,1625.6,1625.4,5.396]
[1744673490719,6.15221,1625.5,1625.3,0.7608]
[1744673490926,6.15221,1625.5,1625.4,5.396]
[1744673491532,6.15175,1625.6,1625.4,5.396]
[1744673491533,6.15174,1625.6,1625.4,5.396]
[1744673491728,12.30351,1625.6,1625.4,5.396]
[1744673492626,6.15195,1625.5,1625.4,5.396]
[1744673493261,12.30369,1625.6,1625.4,5.396]
[1744673493739,6.15195,1625.5,1625.4,5.396]
[1744673494363,6.15129,1625.7,1625.4,5.396]
[1744673494536,6.15162,1625.6,1625.4,5.396]
[1744673494734,12.30283,1625.7,1625.4,5.396]
[1744673495045,6.15158,1625.6,1625.4,5.396]
[1744673496264,6.15083,1625.8,1625.4,6.626937]
[1744673496466,6.1512,1625.7,1625.4,12.779127]
[1744673496666,6.1512,1625.7,1625.4,18.931327]
[1744673496970,6.1512,1625.7,1625.4,12.779127]
[1744673497169,12.30255,1625.7,1625.4,12.779127]
[1744673497337,6.1512,1625.7,1625.5,1.2779127]
[1744673498568,12.30254,1625.7,1625.5,1.2779127]
[1744673498869,6.1512,1625.7,1625.5,1.2779127]
[1744673499052,6.15157,1625.6,1625.4,5.396]
[1744673499259,6.15195,1625.5,1625.4,5.396]
[1744673500439,12.30517,1625.4,1625.1,6.1495]
[1744673500639,12.30517,1625.4,1625.2,4.0]
[1744673500839,12.30517,1625.4,1625.1,6.1495]
[1744673501072,12.30517,1625.4,1625.1,7.995212]
[1744673501435,6.15307,1625.3,1625.1,6.1495]
[1744673501665,12.30611,1625.3,1625.1,6.1495]
[1744673502973,6.15308,1625.2,1625.1,5.395]
[1744673503371,6.15289,1625.3,1625.1,5.395]
[1744673503542,12.30577,1625.3,1625.1,5.395]
[1744673504247,6.15308,1625.2,1625.1,5.395]
[1744673505980,6.15422,1624.9,1624.8,5.395]
[1744673507555,12.31065,1624.7,1624.5,5.392]
[1744673507752,12.31065,1624.7,1624.6,4.0]
[1744673508064,6.1553,1624.7,1624.6,4.0]
[1744673508265,3.0,1625.0,1624.7,0.8228]
[1744673508473,9.15386,1625.0,1624.7,8.075474]
[1744673508682,9.15386,1625.0,1624.7,14.230344]
[1744673509173,9.15386,1625.0,1624.7,8.075474]
[1744673509762,5.60604878,1625.4,1624.7,1.920604]
[1744673509956,5.60604878,1625.4,1624.7,8.075474]
[1744673509957,6.15357,1625.1,1624.7,8.075474]
[1744673510274,6.15435,1624.9,1624.7,0.8228]
[1744673511146,6.15396,1625.0,1624.7,6.97776]
[1744673511488,6.15407,1625.0,1624.7,6.97766]
[1744673511977,6.15407,1625.0,1624.7,7.03929238]
[1744673512146,7.97896401,1625.3,1624.8,6.15456]
[1744673512147,6.15363,1625.1,1624.8,6.15456]
[1744673512471,6.15363,1625.1,1624.7,6.97775]
[1744673512472,6.15392,1625.0,1624.7,13.13263]
[1744673512679,6.15392,1625.0,1624.7,1.520575]
[1744673512879,6.15422,1624.9,1624.7,1.520575]
[1744673513076,6.15392,1625.0,1624.7,0.8228]
[1744673513383,6.15395,1625.0,1624.7,7.03912127]
[1744673513553,6.15425,1624.9,1624.7,0.8228]
[1744673513755,6.1546,1624.8,1624.5,18.47871]
[1744673513959,12.3087,1624.9,1624.6,6.15526]
[1744673514350,6.15429,1624.9,1624.6,6.15526]
[1744673514876,12.30866,1624.9,1624.6,6.15525]
[1744673515180,6.15429,1624.9,1624.6,6.15525]
[1744673515359,6.15429,1624.9,1624.6,6.15524]
[1744673515543,12.3087,1624.9,1624.6,6.15524]
[1744673515949,6.15429,1624.9,1624.6,14.21986609]
[1744673516172,6.15429,1624.9,1624.6,14.158321]
[1744673516998,12.30791,1625.0,1624.7,6.15497]
[1744673518195,3.0,1625.1,1624.8,0.8321]
[1744673518365,6.15385,1625.0,1624.8,0.8321]
[1744673518686,12.30793,1625.0,1624.8,0.8321]
[1744673519499,6.15385,1625.0,1624.8,0.8321]
[1744673520301,6.15385,1625.0,1624.8,6.98669]
[1744673520595,12.30721,1625.1,1624.8,12.37969]
[1744673520792,12.30728,1625.1,1624.8,12.37958]
[1744673520965,6.15356,1625.1,1624.8,12.37958]
[1744673521163,6.15318,1625.2,1624.9,6.21565834]
[1744673521571,6.1528,1625.3,1625.0,6.1538]
[1744673521910,12.30564,1625.3,1625.0,6.15374]
[1744673522054,6.15314,1625.2,1624.9,12.30822]
[1744673522415,12.30588,1625.3,1625.0,6.15384]
[1744673522617,12.30588,1625.3,1625.0,7.384635]
[1744673523326,6.1528,1625.3,1625.0,13.538355]
[1744673523491,6.1528,1625.3,1625.0,7.384515]
[1744673523697,6.15245,1625.4,1625.1,7.03229817]
[1744673524000,6.15245,1625.4,1625.2,5.393]
[1744673524206,6.15199,1625.5,1625.2,11.54596]
[1744673524576,6.15199,1625.5,1625.2,17.69892]
[1744673524780,6.15199,1625.5,1625.2,19.550552]
[1744673525221,12.30415,1625.5,1625.2,13.397592]
[1744673525508,6.15271,1625.3,1625.2,5.393]
[1744673527523,6.15175,1625.6,1625.3,6.1527]
[1744673527702,12.30361,1625.6,1625.3,6.1527]
[1744673529133,12.30361,1625.6,1625.2,12.31176]
[1744673529134,12.30414,1625.5,1625.2,12.31176]
[1744673529307,6.15254,1625.4,1625.2,6.1587]
[1744673530837,6.15271,1625.3,1625.2,5.393]
[1744673533003,6.15247,1625.4,1625.2,6.2139]
[1744673535829,12.30415,1625.5,1625.2,12.36698]
[1744673536003,6.15168,1625.6,1625.3,6.15267]
[1744673536197,12.30342,1625.6,1625.3,6.15261]
[1744673536412,6.15146,1625.7,1625.4,6.15215]
[1744673536633,6.15218,1625.5,1625.2,6.2139]
[1744673536820,6.15218,1625.5,1625.2,12.36697]
[1744673537527,12.3043,1625.5,1625.2,12.36697]
[1744673538531,6.15212,1625.5,1625.2,12.36697]
[1744673538714,12.30423,1625.5,1625.2,12.36697]
[1744673538905,6.15243,1625.4,1625.2,6.2139]
[1744673539106,6.15271,1625.3,1625.2,5.393]
[1744673539330,6.15243,1625.4,1625.2,5.393]
[1744673539536,6.152,1625.5,1625.2,5.393]
[1744673539703,6.152,1625.5,1625.2,11.54584]
[1744673539902,6.152,1625.5,1625.2,17.69887]
[1744673540631,6.152,1625.5,1625.2,17.69881]
[1744673540832,3.0,1625.6,1625.2,5.393]
[1744673541005,6.15258,1625.4,1625.2,5.393]
[1744673541205,6.15271,1625.3,1625.2,5.393]
[1744673541408,7.383239,1625.3,1625.2,5.393]
[1744673541607,6.1537,1625.1,1624.8,6.96861]
[1744673541841,6.15385,1625.0,1624.9,9.39]
[1744673542014,6.15385,1625.0,1624.9,5.39]
[1744673546169,6.15385,1625.0,1624.5,0.8141]
[1744673546170,6.15491,1624.8,1624.5,0.8141]
[1744673546311,6.15603,1624.5,1624.3,0.8309]
[1744673546620,12.31194,1624.5,1624.3,5.39]
[1744673546823,6.15611,1624.4,1624.3,5.39]
[1744673547612,6.15725,1624.1,1624.0,53.363]
[1744673547911,6.15725,1624.1,1624.0,5.39]
[1744673548111,6.15827,1623.9,1623.7,0.801]
[1744673548513,12.31653,1623.9,1623.7,0.801]
[1744673549255,6.15839,1623.8,1623.7,0.801]
[1744673549426,10.390055,1623.8,1623.7,0.03]
[1744673550328,16.080055,1623.8,1623.7,1e-05]
[1744673551724,16.53596478,1623.8,1623.7,1e-05]
[1744673552351,19.37492879,1623.8,1623.7,1e-05]
[1744673552745,19.69495528,1623.8,1623.7,1e-05]
[1744673553845,16.85599127,1623.8,1623.7,1e-05]
[1744673554477,16.53596478,1623.8,1623.7,1e-05]
[1744673556322,5.14,1623.8,1623.7,1e-05]
[1744673556525,6.15772,1624.0,1623.7,1e-05]
[1744673556759,2.83896401,1624.1,1623.7,1e-05]
[1744673557058,6.15771,1624.0,1623.7,1e-05]
[1744673557255,6.15771,1624.0,1623.7,6.15869]
[1744673557425,3.0,1623.9,1623.7,1e-05]
[1744673557626,9.15801,1623.9,1623.7,1e-05]
[1744673557826,2.83896401,1624.1,1623.7,1e-05]
[1744673557827,2.83896401,1624.1,1623.7,6.774581]
[1744673558142,2.83896401,1624.1,1623.8,6.91467]
[1744673558349,7.97896401,1624.3,1623.9,6.15793]
[1744673558659,6.15726,1624.1,1623.8,12.30885]
[1744673558829,6.15692,1624.2,1623.8,12.30878]
[1744673559029,6.15644,1624.4,1624.0,6.15748]
[1744673559231,6.15649,1624.3,1624.0,6.15748]
[1744673559431,6.1575,1624.1,1623.8,6.1505]
[1744673559975,6.15694,1624.2,1623.8,12.37031738]
[1744673560128,6.15694,1624.2,1623.8,12.30874]
[1744673560328,6.15726,1624.1,1623.8,13.6012051]
[1744673560540,12.31471,1624.1,1623.8,13.6012051]
[1744673560737,6.15801,1623.9,1623.8,6.1505]
[1744673561228,3.0,1624.2,1623.8,12.30862]
[1744673561431,3.0,1624.1,1623.8,12.30862]
[1744673561634,9.15727,1624.1,1623.8,12.30862]
[1744673561839,3.0,1624.1,1623.9,6.15796]
[1744673563775,3.0,1624.2,1624.0,6.15745]
[1744673564561,12.31247,1624.4,1624.0,12.31495]
[1744673564752,3.0,1624.3,1624.1,6.9836]
[1744673564954,3.0,1624.3,1624.1,0.8266]
[1744673565156,3.0,1624.3,1624.1,6.98372]
[1744673565353,9.64594923,1624.8,1624.2,6.15667]
[1744673565354,12.31092,1624.6,1624.2,6.15667]
[1744673565557,12.31092,1624.6,1624.2,12.31341]
[1744673565857,3.0,1624.5,1624.2,17.70742]
[1744673566561,9.15574,1624.5,1624.2,11.55067]
[1744673566729,9.15574,1624.5,1624.2,13.5355255]
[1744673566935,6.15633,1624.4,1624.2,5.394]
[1744673567166,12.31274,1624.4,1624.2,5.394]
[1744673567667,6.15631,1624.4,1624.2,5.394]
[1744673568066,15.31171,1624.5,1624.2,5.394]
[1744673568365,6.1562,1624.4,1624.2,5.394]
[1744673569983,15.31177,1624.5,1624.2,5.394]
[1744673570639,6.15613,1624.4,1624.2,5.394]
[1744673570984,6.15649,1624.3,1624.2,5.394]
[1744673575211,6.15649,1624.3,1624.0,6.15749]
[1744673575393,6.15465,1624.8,1624.2,0.7582]
[1744673575595,6.15465,1624.8,1624.0,6.15763]
[1744673575596,6.15489,1624.8,1624.5,6.91359]
[1744673575807,6.15489,1624.8,1624.5,13.06922]
[1744673576108,6.15489,1624.8,1624.5,6.91359]
[1744673576697,6.15479,1624.8,1624.5,6.91359]
[1744673577267,9.769635,1624.9,1624.6,6.15523]
[1744673577268,9.15425,1624.9,1624.6,6.15523]
[1744673577468,3.0,1624.9,1624.7,6.15496]
[1744673577975,6.15524,1624.7,1624.5,0.7582]
[1744673578174,12.31056,1624.7,1624.5,0.7582]
[1744673578400,6.15536,1624.6,1624.3,11.54839]
[1744673578608,6.15593,1624.5,1624.3,6.1977]
[1744673578844,12.3119,1624.5,1624.3,6.1977]
[1744673580654,6.15611,1624.4,1624.3,6.1977]
[1744673580810,6.15611,1624.4,1624.3,5.392]
[1744673581011,7.387314,1624.4,1624.3,5.392]
[1744673583116,6.15673,1624.3,1624.1,0.8057]
[1744673583305,6.15687,1624.2,1624.0,5.392]
[1744673583636,12.31404,1624.2,1624.0,5.392]
[1744673583933,6.15661,1624.3,1624.0,5.392]
[1744673584134,6.15661,1624.3,1624.0,11.54944]
[1744673584348,6.15553,1624.6,1624.3,6.15631]
[1744673584632,6.15553,1624.6,1624.3,12.31267]
[1744673584633,6.15538,1624.6,1624.3,12.31267]
[1744673584838,12.31092,1624.6,1624.3,6.1563]
[1744673585020,6.15583,1624.5,1624.2,6.15682]
[1744673585217,12.31268,1624.4,1624.1,6.97376]
[1744673585536,6.15634,1624.4,1624.1,6.97376]
[1744673585738,12.31184,1624.5,1624.1,6.97374]
[1744673586241,12.31184,1624.5,1624.1,8.3339744]
[1744673586617,12.31184,1624.5,1624.2,6.15684]
[1744673587236,6.15652,1624.3,1624.1,0.8166]
[1744673587554,6.15687,1624.2,1624.1,0.8166]
[1744673587708,12.31328,1624.3,1624.1,0.8166]
[1744673587910,6.15652,1624.3,1624.1,0.8166]
[1744673588330,9.00002828,1624.6,1624.3,6.15636]
[1744673588522,3.0,1624.5,1624.3,6.15636]
[1744673589111,3.0,1624.5,1624.2,6.1567]
[1744673589613,9.15574,1624.5,1624.2,12.3134]
[1744673590343,9.15574,1624.5,1624.2,6.1567]
[1744673591232,6.15574,1624.5,1624.2,6.21826254]
[1744673591646,6.15629,1624.4,1624.1,6.97375]
[1744673591955,6.15629,1624.4,1624.1,0.8166]
[1744673592118,12.31173,1624.5,1624.1,6.97375]
[1744673592453,6.15584,1624.5,1624.2,12.31356]
[1744673592923,12.31187,1624.5,1624.2,6.15678]
[1744673593123,6.15693,1624.2,1624.0,5.392]
[1744673593441,6.15725,1624.1,1624.0,5.392]
[1744673593846,6.15794,1624.0,1623.7,0.76861]
[1744673594011,6.15839,1623.8,1623.7,5.39201]
[1744673594343,9.15839,1623.8,1623.7,1e-05]
[1744673594507,12.00284828,1623.8,1623.7,1e-05]
[1744673594847,14.94877111,1623.8,1623.7,1e-05]
[1744673595935,15.49877111,1623.8,1623.7,1e-05]
[1744673596135,20.63877111,1623.8,1623.7,1e-05]
[1744673596651,24.73426245,1623.8,1623.7,1e-05]
[1744673596831,12.00512828,1623.2,1623.1,0.05]
[1744673597045,13.82168711,1623.2,1623.1,0.05]
[1744673597346,10.97722883,1623.2,1623.1,0.05]
[1744673601253,11.43506315,1623.2,1623.1,0.05]
[1744673601454,10.97722883,1623.2,1623.1,0.05]
[1744673602153,7.97722883,1623.2,1623.1,0.05]
[1744673602452,6.16067,1623.2,1623.1,0.05]
[1744673602630,9.16067,1623.2,1623.1,0.05]
[1744673603523,6.16008,1623.4,1623.1,6.21089]
[1744673603722,6.60986651,1623.6,1623.2,0.8003]
[1744673604052,6.15911,1623.7,1623.4,6.15986]
[1744673604222,12.31704,1623.8,1623.5,6.15941]
[1744673604421,12.31696,1623.8,1623.5,6.15948]
[1744673604655,6.15841,1623.8,1623.5,6.15948]
[1744673604850,9.1581,1623.9,1623.5,12.31888]
[1744673605073,3.0,1624.0,1623.5,6.1594]
[1744673605265,6.15857,1623.8,1623.5,7.471355]
[1744673605425,6.15857,1623.8,1623.5,1.311955]
[1744673605621,6.15928,1623.6,1623.4,0.8003]
[1744673605821,12.31774,1623.7,1623.4,0.8003]
[1744673607427,6.15883,1623.7,1623.4,6.9602]
[1744673607633,12.3178,1623.7,1623.4,6.9602]
[1744673608658,12.3178,1623.7,1623.4,13.12]
[1744673608659,6.15883,1623.7,1623.4,13.12]
[1744673608875,6.15847,1623.8,1623.5,6.15946]
[1744673609667,12.317,1623.8,1623.5,6.15946]
[1744673610368,6.1588,1623.7,1623.4,8.81149]
[1744673610535,3.0,1623.9,1623.4,2.6517]
[1744673610536,9.15839,1623.8,1623.4,2.6517]
[1744673610870,6.15953,1623.5,1623.4,0.8003]
[1744673611348,6.15933,1623.6,1623.4,0.8003]
[1744673611752,6.15933,1623.6,1623.3,5.394]
[1744673611753,6.15953,1623.5,1623.3,5.394]
[1744673612067,6.15953,1623.5,1623.2,0.8172]
[1744673612068,6.1597,1623.5,1623.2,0.8172]
[1744673612238,6.1597,1623.5,1623.2,6.97785]
[1744673612600,12.31943,1623.5,1623.2,6.97785]
[1744673613274,9.15917,1623.6,1623.3,6.16027]
[1744673613437,9.15917,1623.6,1623.3,12.32046]
[1744673613757,9.15917,1623.6,1623.3,6.16019]
[1744673614169,9.15917,1623.6,1623.3,12.32036]
[1744673614349,5.14,1623.8,1623.5,6.98904]
[1744673614679,11.29839,1623.8,1623.5,6.98904]
[1744673614861,11.29839,1623.8,1623.5,0.8296]
[1744673615473,6.15888,1623.7,1623.5,0.8296]
[1744673615772,6.15915,1623.6,1623.4,5.394]
[1744673615961,6.15953,1623.5,1623.4,5.394]
[1744673616583,12.31847,1623.6,1623.4,5.394]
[1744673616785,6.15953,1623.5,1623.4,5.394]
[1744673619595,6.16039,1623.3,1623.1,6.2451]
[1744673619891,6.16025,1623.4,1623.1,12.40614]
[1744673620104,12.32032,1623.4,1623.1,12.40614]
[1744673620599,7.391579,1623.5,1623.1,12.40604]